fUST/lending_fUST_20240901
["ID","MTS","AMOUNT","RATE_DAILY","PERIOD"]
[336839738,1725204648540,-500.0,0.00024931,2]
[336839739,1725204648550,-500.0,0.00024931,2]
[336839740,1725204648560,-500.0,0.00024931,2]
[336839741,1725204648571,-500.0,0.00024931,2]
[336839742,1725204648582,-500.0,0.00024931,2]
[336839743,1725204648592,-500.0,0.00024931,2]
[336839744,1725204648601,-500.0,0.00024931,2]
[336839745,1725204648611,-500.0,0.00024931,2]
[336839746,1725204648621,-500.0,0.00024931,2]
[336839747,1725204648631,-500.0,0.00024931,2]
[336839748,1725204648641,-2433.33,0.00024931,2]
[336839749,1725204648650,-2339.67,0.00024931,2]
[336839750,1725204648660,-500.0,0.00024931,2]
[336839751,1725204648671,-506.9115781,0.00024931,2]
[336839752,1725204648680,-500.0,0.00024931,2]
[336839753,1725204648691,-914.74,0.00024931,2]
[336839754,1725204648702,-504.85190653,0.00024931,2]
[336839755,1725204648712,-500.0,0.00024931,2]
[336839756,1725204648722,-500.0,0.00024931,2]
[336839757,1725204648733,-1162.61,0.00024931,2]
[336839758,1725204648743,-505.35678504,0.00024931,2]
[336839759,1725204648753,-500.0,0.00024931,2]
[336839760,1725204648763,-500.0,0.00024931,2]
[336839761,1725204648773,-540.93524496,0.00024931,2]
[336839762,1725204648785,-589.13,0.00024931,2]
[336839763,1725204648795,-533.48,0.00024931,2]
[336839764,1725204648805,-2261.62,0.00024931,2]
[336839765,1725204648815,-788.46,0.00024931,2]
[336839766,1725204648825,-1895.23,0.00024931,2]
[336839767,1725204648835,-1083.79,0.00024931,2]
[336839768,1725204648844,-500.0,0.00024931,2]
[336839769,1725204648855,-1766.36,0.00024931,2]
[336839770,1725204648864,-500.0,0.00024931,2]
[336839771,1725204648877,-500.0,0.00024931,2]
[336839772,1725204648886,-512.69929887,0.00024931,2]
[336839773,1725204648896,-500.0,0.00024931,2]
[336839774,1725204648906,-501.55020929,0.00024931,2]
[336839775,1725204648916,-500.0,0.00024931,2]
[336839776,1725204648925,-500.0,0.00024931,2]
[336839777,1725204648936,-500.0,0.00024931,2]
[336839778,1725204648945,-500.0,0.00024931,2]
[336839779,1725204648955,-500.0,0.00024931,2]
[336839780,1725204648965,-2444.77,0.00024931,2]
[336839781,1725204648975,-500.0,0.00024931,2]
[336839782,1725204648984,-500.0,0.00024931,2]
[336839783,1725204648994,-500.0,0.00024931,2]
[336839784,1725204649004,-500.0,0.00024931,2]
[336839785,1725204649014,-1346.22,0.00024931,2]
[336839786,1725204649024,-622.91,0.00024931,2]
[336839787,1725204649034,-500.0,0.00024931,2]
[336839788,1725204649044,-652.23,0.00024931,2]
[336839789,1725204649054,-634.41,0.00024931,2]
[336839790,1725204649064,-500.0,0.00024931,2]
[336839791,1725204649074,-923.521888,0.00024931,7]
[336839792,1725204649084,-923.521888,0.00024931,7]
[336839793,1725204649094,-923.521888,0.00024931,7]
[336839794,1725204649103,-500.0,0.00024931,2]
[336839795,1725204649113,-500.0,0.00024931,2]
[336839796,1725204649122,-500.0,0.00024931,2]
[336839797,1725204649132,-627.84,0.00024931,2]
[336839798,1725204649142,-290.23250147,0.00024931,2]
[336839799,1725204649152,-500.0,0.00024931,2]
[336839800,1725204649162,-923.521888,0.00024931,7]
[336839801,1725204649171,-500.0,0.00024931,2]
[336839802,1725204649180,-923.521888,0.00024931,7]
[336839803,1725204649190,-923.521888,0.00024931,7]
[336839804,1725204649199,-1861.08,0.00024931,2]
[336839805,1725204649209,-614.992229,0.00024931,7]
[336839806,1725204649219,-614.992229,0.00024931,7]
[336839807,1725204649229,-614.992229,0.00024931,7]
[336839808,1725204649239,-2697.45,0.00024931,2]
[336839809,1725204649249,-2739.83,0.00024931,2]
[336839810,1725204649259,-500.0,0.00024931,2]
[336839811,1725204649269,-614.992229,0.00024931,7]
[336839812,1725204649279,-1121.81,0.00024931,2]
[336839813,1725204649288,-614.992229,0.00024931,7]
[336839814,1725204649298,-614.992229,0.00024931,7]
[336839815,1725204649308,-567.57,0.00024931,2]
[336839816,1725204649318,-500.0,0.00024931,2]
[336839817,1725204649328,-1470.72,0.00024931,2]
[336839818,1725204649338,-553.31,0.00024931,2]
[336839819,1725204649349,-500.0,0.00024931,2]
[336839820,1725204649359,-500.0,0.00024931,2]
[336839821,1725204649368,-2146.11,0.00024931,2]
[336839822,1725204649378,-500.0,0.00024931,2]
[336839823,1725204649388,-500.0,0.00024931,2]
[336839824,1725204649398,-500.0,0.00024931,2]
[336839825,1725204649408,-500.0,0.00024931,2]
[336839826,1725204649417,-500.0,0.00024931,2]
[336839827,1725204649427,-924.5,0.00024931,2]
[336839828,1725204649436,-2790.9,0.00024931,2]
[336839829,1725204649446,-907.14,0.00024931,2]
[336839830,1725204649455,-1767.46,0.00024931,2]
[336839831,1725204649464,-500.0,0.00024931,2]
[336839832,1725204649474,-500.0,0.00024931,2]
[336839833,1725204649483,-500.0,0.00024931,2]
[336839834,1725204649497,-745.2,0.00024931,2]
[336839835,1725204649509,-500.0,0.00024931,2]
[336839836,1725204649519,-519.76,0.00024931,2]
[336839837,1725204649528,-503.01,0.00024931,2]
[336839838,1725204649537,-2496.1,0.00024931,2]
[336839839,1725204649547,-500.0,0.00024931,2]
[336839840,1725204649556,-500.0,0.00024931,2]
[336839841,1725204649565,-625.02,0.00024931,2]
[336839842,1725204649575,-3850.21,0.00024931,2]
[336839843,1725204649584,-500.0,0.00024931,2]
[336839844,1725204649594,-500.0,0.00024931,2]
[336839845,1725204649603,-500.0,0.00024931,2]
[336839846,1725204649612,-13456.36,0.00024931,2]
[336839847,1725204649622,-500.0,0.00024931,2]
[336839848,1725204649631,-608.23,0.00024931,2]
[336839849,1725204649640,-500.0,0.00024931,2]
[336839850,1725204649650,-3074.21,0.00024931,2]
[336839851,1725204649660,-848.77,0.00024931,2]
[336839852,1725204649670,-335.00154715,0.00024931,2]
[336839853,1725204649679,-500.0,0.00024931,2]
[336839854,1725204649689,-1190.77,0.00024931,2]
[336839855,1725204649699,-2424.55,0.00024931,2]
[336839856,1725204649708,-500.0,0.00024931,2]
[336839857,1725204649718,-500.0,0.00024931,2]
[336839858,1725204649727,-1068.74,0.00024931,2]
[336839859,1725204649737,-500.0,0.00024931,2]
[336839860,1725204649746,-500.0,0.00024931,2]
[336839861,1725204649756,-2596.07,0.00024931,2]
[336839862,1725204649765,-500.0,0.00024931,2]
[336839863,1725204649775,-3098.55,0.00024931,2]
[336839864,1725204649786,-500.0,0.00024931,2]
[336839865,1725204649795,-841.45,0.00024931,2]
[336839866,1725204649805,-1653.81,0.00024931,2]
[336839867,1725204649815,-500.0,0.00024931,2]
[336839868,1725204649824,-2493.49,0.00024931,2]
[336839869,1725204649834,-4059.99,0.00024931,2]
[336839870,1725204649843,-788.97,0.00024931,2]
[336839871,1725204649852,-500.0,0.00024931,2]
[336839872,1725204649862,-500.0,0.00024931,2]
[336839873,1725204649872,-866.1,0.00024931,2]
[336839874,1725204649882,-1394.73,0.00024931,2]
[336839875,1725204649892,-500.0,0.00024931,2]
[336839876,1725204649902,-577.7,0.00024931,2]
[336839877,1725204649912,-500.0,0.00024931,2]
[336839878,1725204649921,-500.0,0.00024931,2]
[336839879,1725204649931,-503.37387018,0.00024931,2]
[336839880,1725204649941,-956.01,0.00024931,2]
[336839881,1725204649950,-2232.08,0.00024931,2]
[336839882,1725204649960,-500.0,0.00024931,2]
[336839883,1725204649970,-2076.76,0.00024931,2]
[336839884,1725204649979,-1058.05,0.00024931,2]
[336839885,1725204649988,-500.0,0.00024931,2]
[336839886,1725204649998,-2470.28,0.00024931,2]
[336839887,1725204650007,-500.0,0.00024931,2]
[336839888,1725204650017,-627.05,0.00024931,2]
[336839889,1725204650027,-500.0,0.00024931,2]
[336839890,1725204650039,-848.54,0.00024931,2]
[336839891,1725204650050,-643.36,0.00024931,2]
[336839892,1725204650060,-500.0,0.00024931,2]
[336839893,1725204650069,-500.0,0.00024931,2]
[336839894,1725204650079,-500.0,0.00024931,2]
[336839895,1725204650088,-2155.78,0.00024931,2]
[336839896,1725204650097,-1568.19,0.00024931,2]
[336839897,1725204650107,-500.0,0.00024931,2]
[336839898,1725204650117,-500.0,0.00024931,2]
[336839899,1725204650126,-500.0,0.00024931,2]
[336839900,1725204650136,-2685.7,0.00024931,2]
[336839901,1725204650145,-628.27,0.00024931,2]
[336839902,1725204650154,-1173.45,0.00024931,2]
[336839903,1725204650164,-500.0,0.00024931,2]
[336839904,1725204650173,-500.0,0.00024931,2]
[336839905,1725204650183,-2403.89,0.00024931,2]
[336839906,1725204650192,-500.0,0.00024931,2]
[336839907,1725204650201,-500.0,0.00024931,2]
[336839908,1725204650210,-955.24,0.00024931,2]
[336839909,1725204650219,-1782.79,0.00024931,2]
[336839910,1725204650229,-2274.61,0.00024931,2]
[336839911,1725204650238,-503.6591506,0.00024931,2]
[336839912,1725204650247,-934.12,0.00024931,2]
[336839913,1725204650256,-500.0,0.00024931,2]
[336839914,1725204650265,-3740.25,0.00024931,2]
[336839915,1725204650275,-1288.8,0.00024931,2]
[336839916,1725204650286,-500.0,0.00024931,2]
[336839917,1725204650300,-11713.76,0.00024931,2]
[336839918,1725204650309,-500.0,0.00024931,2]
[336839919,1725204650319,-500.0,0.00024931,2]
[336839920,1725204650328,-500.0,0.00024931,2]
[336839921,1725204650339,-2148.59,0.00024931,2]
[336839922,1725204650349,-1954.16,0.00024931,2]
[336839923,1725204650358,-500.0,0.00024931,2]
[336839924,1725204650368,-500.0,0.00024931,2]
[336839925,1725204650377,-2111.84,0.00024931,2]
[336839926,1725204650387,-500.0,0.00024931,2]
[336839927,1725204650396,-500.0,0.00024931,2]
[336839928,1725204650406,-500.0,0.00024931,2]
[336839929,1725204650415,-2359.77,0.00024931,2]
[336839930,1725204650424,-500.1340863,0.00024931,2]
[336839931,1725204650434,-500.0,0.00024931,2]
[336839932,1725204650444,-500.0,0.00024931,2]
[336839933,1725204650453,-425.29799994,0.00024931,2]
[336839934,1725204650463,-722.36,0.00024931,2]
[336839935,1725204650472,-500.0,0.00024931,2]
[336839936,1725204650481,-500.0,0.00024931,2]
[336839937,1725204650491,-1912.48,0.00024931,2]
[336839938,1725204650500,-4383.47,0.00024931,2]
[336839939,1725204650513,-500.0,0.00024931,2]
[336839940,1725204650523,-500.0,0.00024931,2]
[336839941,1725204650532,-500.0,0.00024931,2]
[336839942,1725204650541,-6843.6,0.00024931,2]
[336839943,1725204650551,-500.0,0.00024931,2]
[336839944,1725204650561,-2624.32,0.00024931,2]
[336839945,1725204650571,-500.0,0.00024931,2]
[336839946,1725204650582,-500.0,0.00024931,2]
[336839947,1725204650592,-2507.54,0.00024931,2]
[336839948,1725204650601,-500.0,0.00024931,2]
[336839949,1725204650611,-2291.73,0.00024931,2]
[336839950,1725204650620,-1197.76,0.00024931,2]
[336839951,1725204650630,-502.98513735,0.00024931,2]
[336839952,1725204650640,-500.0,0.00024931,2]
[336839953,1725204650649,-154.0,0.00024932,2]
[336839954,1725204650658,-500.0,0.00024973,2]
[336839955,1725204650771,-500.0,0.00024973,2]
[336839956,1725204650781,-923.521888,0.00024989,7]
[336839957,1725204650796,-923.521888,0.00024989,7]
[336839958,1725204650806,-614.992229,0.00024989,7]
[336839959,1725204650815,-614.992229,0.00024989,7]
[336839960,1725204650824,-155.0,0.0002499,12]
[336839961,1725204650834,-161.53345442,0.00024999,2]
[336839962,1725204650843,-529.91385605,0.00024999,2]
[336839963,1725204650853,-151.0,0.00024999,7]
[336839964,1725204650862,-151.0,0.00024999,7]
[336839965,1725204650872,-500.0,0.00024999,2]
[336839966,1725204650881,-500.0,0.00024999,2]
[336839967,1725204650891,-500.0,0.00024999,2]
[336839968,1725204650900,-166958.82525087,0.00025,2]
[336839969,1725204650910,-10364.0,0.00025,2]
[336839970,1725204650919,-2783.67,0.00025,14]
[336839971,1725204650928,-1857.55,0.00025,14]
[336839972,1725204650937,-1000.0,0.00025,25]
[336839973,1725204650947,-161.511001,0.00025,7]
[336839974,1725204650957,-150.112233,0.00025,8]
[336839975,1725204650967,-150.112233,0.00025,2]
[336839976,1725204650976,-151.0,0.00025,7]
[336839977,1725204650985,-151.0,0.00025,7]
[336839978,1725204650994,-373.656691,0.00025,7]
[336839979,1725204651003,-923.521888,0.00025,7]
[336839980,1725204651012,-923.521888,0.00025,7]
[336839981,1725204651022,-614.992229,0.00025,7]
[336839982,1725204651035,-614.992229,0.00025,7]
[336839983,1725204651045,-154.0,0.00025,2]
[336839984,1725204651055,-1030.65738201,0.00025,2]
[336839985,1725204651071,-215123.87929355,0.00025,2]
[336839986,1725204651088,-17558.34789252,0.00025,2]
[336839987,1725204651299,-1790.45,0.00024657,2]
[336839988,1725204651308,-500.0,0.00024657,2]
[336839989,1725204651319,-179.86,0.00024931,2]
[336839990,1725204651328,-1790.45,0.00024931,2]
[336839991,1725204651338,-4294.98649559,0.00025,2]
[336839992,1725204651349,-3590.39028703,0.00025,2]
[336839999,1725205050521,155.22979684,0.0002001,2]
[336840000,1725205055162,155.0,0.0002001,2]
[336840004,1725205118055,302.24446742,0.0002,2]
[336840005,1725205123566,155.0,0.0002001,2]
[336840006,1725205128557,155.0,0.0002001,2]
[336840007,1725205133776,155.0,0.0002001,2]
[336840008,1725205138365,155.24673088,0.0002001,2]
[336840011,1725205200363,158.441461,0.00014247,2]
[336840014,1725205493475,302.27461649,0.0002,2]
[336840061,1725205832576,-205.211937,0.00020752,2]
[336840063,1725205832587,-250.0,0.00021053,2]
[336840065,1725205832596,-483.01448831,0.00021058,2]
[336840071,1725205832640,-1541.21344508,0.00021058,2]
[336840087,1725205838630,-432.85647337,0.00021058,2]
[336840088,1725205838657,-542.91559324,0.00021058,2]
[336840089,1725205838668,-250.0,0.00021111,2]
[336840090,1725205838678,-135.82329352,0.00021169,2]
[336840091,1725205838697,-114.17670648,0.00021169,2]
[336840092,1725205838707,-251.0,0.00021215,2]
[336840093,1725205838716,-250.0,0.00021227,2]
[336840094,1725205838726,-433.564372,0.00021273,2]
[336840095,1725205838736,-250.0,0.00021284,2]
[336840096,1725205838746,-250.0,0.00021342,2]
[336840097,1725205838757,-250.0,0.000214,2]
[336840098,1725205838767,-250.0,0.00021458,2]
[336840099,1725205838776,-250.0,0.00021515,2]
[336840100,1725205838786,-3791.62771979,0.00021531,2]
[336840101,1725205838796,-250.0,0.00021573,2]
[336840102,1725205838805,-300.0,0.00021624,2]
[336840103,1725205838815,-7136.66372358,0.00021625,2]
[336840104,1725205838827,-420.30828837,0.00021625,2]
[336840105,1725205838839,-17343.02798805,0.00021625,2]
[336840106,1725205838849,-250.0,0.00021631,2]
[336840107,1725205838859,-250.0,0.00021689,2]
[336840108,1725205838869,-250.0,0.00021746,2]
[336840109,1725205838879,-250.0,0.00021804,2]
[336840110,1725205838889,-170.8751765,0.00021832,2]
[336840111,1725205838898,-250.0,0.00021862,2]
[336840112,1725205838907,-250.0,0.0002192,2]
[336840113,1725205838917,-250.0,0.00021977,2]
[336840114,1725205838928,-250.0,0.00022035,2]
[336840115,1725205838938,-250.0,0.00022093,2]
[336840116,1725205838949,-250.0,0.00022151,2]
[336840117,1725205838960,-158.441461,0.00023014,2]
[336840118,1725205838970,-420.0,0.00023786,2]
[336840119,1725205838980,-361.506984,0.00023836,2]
[336840120,1725205838990,-681.56,0.00024647,3]
[336840121,1725205839000,-340.78,0.00024647,3]
[336840122,1725205839010,-170.39,0.00024647,3]
[336840123,1725205839019,-511.21,0.00024647,3]
[336840124,1725205839029,-500.0,0.00024656,2]
[336840125,1725205839039,-500.0,0.00024656,2]
[336840126,1725205839049,-500.0,0.00024656,2]
[336840127,1725205839058,-500.0,0.00024656,2]
[336840128,1725205839068,-500.0,0.00024656,2]
[336840129,1725205839078,-500.0,0.00024656,2]
[336840130,1725205839089,-500.0,0.00024656,2]
[336840131,1725205839098,-500.0,0.00024656,2]
[336840132,1725205839108,-500.0,0.00024656,2]
[336840133,1725205839118,-500.0,0.00024656,2]
[336840134,1725205839128,-500.0,0.00024656,2]
[336840135,1725205839138,-500.0,0.00024656,2]
[336840136,1725205839147,-500.0,0.00024656,2]
[336840137,1725205839157,-500.0,0.00024656,2]
[336840138,1725205839167,-500.0,0.00024656,2]
[336840139,1725205839176,-500.0,0.00024656,2]
[336840140,1725205839186,-500.0,0.00024656,2]
[336840141,1725205839198,-500.0,0.00024656,2]
[336840142,1725205839208,-500.0,0.00024656,2]
[336840143,1725205839218,-500.0,0.00024656,2]
[336840144,1725205839231,-500.0,0.00024656,2]
[336840145,1725205839240,-580.12239973,0.00024656,2]
[336840146,1725205839250,-500.0,0.00024656,2]
[336840147,1725205839262,-500.0,0.00024656,2]
[336840148,1725205839276,-500.0,0.00024656,2]
[336840149,1725205839285,-500.0,0.00024656,2]
[336840150,1725205839295,-300.0,0.00024656,2]
[336840151,1725205839305,-500.0,0.00024656,2]
[336840152,1725205839315,-510.91883181,0.00024656,2]
[336840153,1725205839324,-500.0,0.00024656,2]
[336840154,1725205839333,-500.2569524,0.00024656,2]
[336840155,1725205839343,-9366.34924641,0.00024657,11]
[336840156,1725205839352,-500.0,0.00024657,2]
[336840157,1725205839362,-500.0,0.00024657,2]
[336840158,1725205839371,-500.0,0.00024657,2]
[336840159,1725205839381,-504.79594028,0.00024657,2]
[336840160,1725205839390,-500.0,0.00024657,2]
[336840161,1725205839400,-500.0,0.00024657,2]
[336840162,1725205839409,-500.0,0.00024657,2]
[336840163,1725205839418,-500.0,0.00024657,2]
[336840164,1725205839428,-415.0712568,0.00024657,2]
[336840165,1725205839438,-530.90616032,0.00024657,2]
[336840166,1725205839449,-1447.64,0.00024657,2]
[336840167,1725205839459,-500.0,0.00024657,2]
[336840168,1725205839468,-500.0,0.00024657,2]
[336840169,1725205839478,-500.0,0.00024657,2]
[336840170,1725205839488,-500.0,0.00024657,2]
[336840171,1725205839497,-584.28633893,0.00024657,2]
[336840172,1725205839507,-500.0,0.00024657,2]
[336840173,1725205839517,-500.0,0.00024657,2]
[336840174,1725205839526,-500.0,0.00024657,2]
[336840175,1725205839537,-500.0,0.00024657,2]
[336840176,1725205839546,-502.1,0.00024657,2]
[336840177,1725205839556,-620.11,0.00024657,2]
[336840178,1725205839565,-500.0,0.00024657,2]
[336840179,1725205839575,-500.0,0.00024657,2]
[336840180,1725205839585,-500.0,0.00024657,2]
[336840181,1725205839594,-587.5167475,0.00024657,2]
[336840182,1725205839604,-500.0,0.00024657,2]
[336840183,1725205839613,-500.0,0.00024657,2]
[336840184,1725205839623,-508.30466131,0.00024657,2]
[336840185,1725205839633,-500.0,0.00024657,2]
[336840186,1725205839643,-500.0,0.00024657,2]
[336840187,1725205839654,-500.0,0.00024657,2]
[336840188,1725205839663,-1104.26,0.00024657,2]
[336840189,1725205839673,-500.0,0.00024657,2]
[336840190,1725205839682,-500.0,0.00024657,2]
[336840191,1725205839692,-500.0,0.00024657,2]
[336840192,1725205839708,-500.0,0.00024657,2]
[336840193,1725205839718,-500.0,0.00024657,2]
[336840194,1725205839728,-500.0,0.00024657,2]
[336840195,1725205839738,-500.0,0.00024657,2]
[336840196,1725205839960,-500.0,0.00024657,2]
[336840197,1725205839971,-500.0,0.00024657,2]
[336840198,1725205839980,-500.0,0.00024657,2]
[336840199,1725205839990,-500.0,0.00024657,2]
[336840200,1725205839999,-500.0,0.00024657,2]
[336840201,1725205840009,-500.0,0.00024657,2]
[336840202,1725205840018,-500.0,0.00024657,2]
[336840203,1725205840029,-502.73205741,0.00024657,2]
[336840204,1725205840038,-500.0,0.00024657,2]
[336840205,1725205840048,-500.0,0.00024657,2]
[336840206,1725205840058,-500.0,0.00024657,2]
[336840207,1725205840068,-500.0,0.00024657,2]
[336840208,1725205840077,-500.0,0.00024657,2]
[336840209,1725205840087,-500.0,0.00024657,2]
[336840210,1725205840096,-849.37,0.00024657,2]
[336840211,1725205840106,-515.58476776,0.00024657,2]
[336840212,1725205840115,-500.0,0.00024657,2]
[336840213,1725205840125,-500.0,0.00024657,2]
[336840214,1725205840135,-500.0,0.00024657,2]
[336840215,1725205840145,-500.0,0.00024657,2]
[336840216,1725205840155,-500.0,0.00024657,2]
[336840217,1725205840165,-500.0,0.00024657,2]
[336840218,1725205840175,-801.77,0.00024657,2]
[336840219,1725205840184,-500.0,0.00024657,2]
[336840220,1725205840197,-500.0,0.00024657,2]
[336840221,1725205840206,-500.0,0.00024657,2]
[336840222,1725205840216,-571.46998491,0.00024657,2]
[336840223,1725205840229,-500.0,0.00024657,2]
[336840225,1725205840239,-500.0,0.00024657,2]
[336840226,1725205840248,-500.0,0.00024657,2]
[336840227,1725205840258,-500.0,0.00024657,2]
[336840228,1725205840268,-357.55163027,0.00024657,2]
[336840229,1725205840277,-500.0,0.00024657,2]
[336840230,1725205840287,-228.39434148,0.00024657,2]
[336840231,1725205840297,-502.63088586,0.00024657,2]
[336840233,1725205840306,-666.01,0.00024657,2]
[336840234,1725205840315,-500.0,0.00024657,2]
[336840235,1725205840324,-763.48,0.00024657,2]
[336840236,1725205840334,-500.0,0.00024657,2]
[336840237,1725205840343,-500.0,0.00024657,2]
[336840238,1725205840353,-500.0,0.00024657,2]
[336840239,1725205840362,-686.51,0.00024657,2]
[336840241,1725205840372,-741.64,0.00024657,2]
[336840243,1725205840381,-290.40627938,0.00024657,2]
[336840245,1725205840390,-500.0,0.00024657,2]
[336840247,1725205840400,-500.0,0.00024657,2]
[336840248,1725205840409,-500.0,0.00024657,2]
[336840250,1725205840418,-500.0,0.00024657,2]
[336840251,1725205840428,-500.0,0.00024657,2]
[336840252,1725205840438,-306.90346534,0.00024657,2]
[336840253,1725205840451,-500.0,0.00024657,2]
[336840254,1725205840460,-500.0,0.00024657,2]
[336840255,1725205840469,-284.92661686,0.00024657,2]
[336840256,1725205840478,-372.24155143,0.00024657,2]
[336840258,1725205840488,-592.75,0.00024657,2]
[336840259,1725205840497,-504.72649526,0.00024657,2]
[336840261,1725205840506,-500.0,0.00024657,2]
[336840262,1725205840516,-500.0,0.00024657,2]
[336840263,1725205840525,-500.0,0.00024657,2]
[336840264,1725205840534,-500.0,0.00024657,2]
[336840265,1725205840543,-500.0,0.00024657,2]
[336840266,1725205840553,-500.0,0.00024657,2]
[336840267,1725205840562,-1377.17,0.00024657,2]
[336840268,1725205840572,-500.0,0.00024657,2]
[336840269,1725205840581,-500.0,0.00024657,2]
[336840270,1725205840591,-500.0,0.00024657,2]
[336840271,1725205840600,-500.0,0.00024657,2]
[336840272,1725205840609,-500.0,0.00024657,2]
[336840273,1725205840619,-500.0,0.00024657,2]
[336840274,1725205840628,-596.72,0.00024657,2]
[336840275,1725205840638,-500.0,0.00024657,2]
[336840276,1725205840647,-500.0,0.00024657,2]
[336840277,1725205840656,-500.0,0.00024657,2]
[336840278,1725205840666,-152.01454984,0.00024657,2]
[336840279,1725205840675,-500.0,0.00024657,2]
[336840280,1725205840684,-500.0,0.00024657,2]
[336840281,1725205840697,-189.63033718,0.00024657,2]
[336840282,1725205840706,-500.0,0.00024657,2]
[336840283,1725205840715,-819.32,0.00024657,2]
[336840284,1725205840724,-500.0,0.00024657,2]
[336840285,1725205840734,-1093.72,0.00024657,2]
[336840286,1725205840743,-500.0,0.00024657,2]
[336840287,1725205840753,-500.0,0.00024657,2]
[336840288,1725205840762,-500.0,0.00024657,2]
[336840289,1725205840772,-500.0,0.00024657,2]
[336840290,1725205840781,-1141.89,0.00024657,2]
[336840291,1725205840790,-500.0,0.00024657,2]
[336840292,1725205840799,-500.0,0.00024657,2]
[336840293,1725205840808,-500.0,0.00024657,2]
[336840294,1725205840818,-500.0,0.00024657,2]
[336840295,1725205840828,-926.18,0.00024657,2]
[336840296,1725205840837,-500.0,0.00024657,2]
[336840297,1725205840846,-500.0,0.00024657,2]
[336840298,1725205840855,-500.0,0.00024657,2]
[336840299,1725205840865,-530.41,0.00024657,2]
[336840300,1725205840875,-500.0,0.00024657,2]
[336840301,1725205840885,-500.0,0.00024657,2]
[336840302,1725205840894,-680.37,0.00024657,2]
[336840303,1725205840903,-500.0,0.00024657,2]
[336840304,1725205840913,-500.0,0.00024657,2]
[336840305,1725205840923,-500.0,0.00024657,2]
[336840306,1725205840932,-500.0,0.00024657,2]
[336840307,1725205840942,-500.0,0.00024657,2]
[336840308,1725205840954,-500.0,0.00024657,2]
[336840309,1725205840964,-500.0,0.00024657,2]
[336840310,1725205840974,-500.0,0.00024657,2]
[336840311,1725205840984,-500.0,0.00024657,2]
[336840312,1725205840993,-500.0,0.00024657,2]
[336840313,1725205841002,-500.0,0.00024657,2]
[336840314,1725205841013,-500.0,0.00024657,2]
[336840315,1725205841022,-500.0,0.00024657,2]
[336840316,1725205841031,-500.0,0.00024657,2]
[336840317,1725205841040,-500.0,0.00024657,2]
[336840318,1725205841049,-500.0,0.00024657,2]
[336840319,1725205841058,-500.0,0.00024657,2]
[336840320,1725205841067,-500.0,0.00024657,2]
[336840321,1725205841077,-501.34607379,0.00024657,2]
[336840322,1725205841086,-500.0,0.00024657,2]
[336840323,1725205841095,-500.0,0.00024657,2]
[336840324,1725205841105,-509.68234293,0.00024657,2]
[336840325,1725205841114,-500.0,0.00024657,2]
[336840326,1725205841124,-5474.95,0.00024657,2]
[336840327,1725205841132,-500.0,0.00024657,2]